[Event "*** Titled Tuesday 3|2 Blitz"]
[Site "Chess.com"]
[Date "2016.06.07"]
[Round "3"]
[White "talaicito"]
[Black "SloLev"]
[Result "0-1"]
[WhiteElo "1971"]
[BlackElo "2088"]
[TimeControl "180+2"]
[EndTime "11:35:21 PDT"]
[Termination "SloLev won by resignation"]

1. e4 {[%clk 0:03:01.9]} 1... e5 {[%clk 0:02:58.7]} 2. Nf3 {[%clk 0:03:02.6]}
2... Nc6 {[%clk 0:03:00.3]} 3. Bb5 {[%clk 0:03:04.1]} 3... Nge7 {[%clk
0:03:00.7]} 4. c3 {[%clk 0:03:02.8]} 4... g6 {[%clk 0:03:01]} 5. d4 {[%clk
0:03:02.6]} 5... exd4 {[%clk 0:03:01.1]} 6. cxd4 {[%clk 0:03:03.6]} 6... d5
{[%clk 0:03:01.2]} 7. exd5 {[%clk 0:02:59]} 7... Nxd5 {[%clk 0:02:58.5]} 8. O-O
{[%clk 0:02:59.7]} 8... Bg7 {[%clk 0:02:59.1]} 9. Re1+ {[%clk 0:02:59.6]} 9...
Be6 {[%clk 0:03:00.7]} 10. Ng5 {[%clk 0:02:28.5]} 10... O-O {[%clk 0:03:00.7]}
11. Bxc6 {[%clk 0:02:28.8]} 11... bxc6 {[%clk 0:03:00.7]} 12. Nxe6 {[%clk
0:02:29.8]} 12... fxe6 {[%clk 0:03:01.7]} 13. Nc3 {[%clk 0:02:16.3]} 13... Qh4
{[%clk 0:02:58.9]} 14. Be3 {[%clk 0:01:34.3]} 14... Nxe3 {[%clk 0:02:33.5]} 15.
fxe3 {[%clk 0:01:34.1]} 15... Qf2+ {[%clk 0:02:35]} 16. Kh1 {[%clk 0:01:34.9]}
16... Qxb2 {[%clk 0:02:32.5]} 17. Qc1 {[%clk 0:01:28.7]} 17... Rab8 {[%clk
0:02:30.8]} 18. Rb1 {[%clk 0:01:22.9]} 18... Qxc1 {[%clk 0:02:27.4]} 19. Rexc1
{[%clk 0:01:23.5]} 19... c5 {[%clk 0:02:13.1]} 20. Nb5 {[%clk 0:00:48.7]} 20...
c6 {[%clk 0:02:06.9]} 21. Nxa7 {[%clk 0:00:42.6]} 21... Rxb1 {[%clk 0:02:07.1]}
22. Rxb1 {[%clk 0:00:42.5]} 22... cxd4 {[%clk 0:02:07.7]} 23. exd4 {[%clk
0:00:43.6]} 23... Bxd4 {[%clk 0:02:07.1]} 24. Nxc6 {[%clk 0:00:44.5]} 24... Bc5
{[%clk 0:02:02.2]} 25. a4 {[%clk 0:00:44.5]} 25... Rf2 {[%clk 0:01:59.1]} 26.
Ra1 {[%clk 0:00:37.1]} 26... Rc2 {[%clk 0:01:54.2]} 27. a5 {[%clk 0:00:37.5]}
27... Bd6 {[%clk 0:01:47.7]} 28. Nd4 {[%clk 0:00:33.9]} 28... Rc4 {[%clk
0:01:39.3]} 29. a6 {[%clk 0:00:30.6]} 29... Bc5 {[%clk 0:01:26.6]} 30. Nxe6
{[%clk 0:00:30.9]} 30... Ba7 {[%clk 0:01:27.4]} 31. h3 {[%clk 0:00:26.5]} 31...
Kf7 {[%clk 0:01:25.8]} 32. Ng5+ {[%clk 0:00:26.4]} 32... Kg7 {[%clk 0:01:25.8]}
33. Kh2 {[%clk 0:00:22.7]} 33... h5 {[%clk 0:01:23.1]} 34. Nf3 {[%clk
0:00:20.3]} 34... Bb8+ {[%clk 0:01:20.7]} 35. Kg1 {[%clk 0:00:20.5]} 35... Ba7+
{[%clk 0:01:21.5]} 36. Kf1 {[%clk 0:00:21.4]} 36... Rc2 {[%clk 0:01:21]} 37. Ne1
{[%clk 0:00:21.4]} 37... Rf2+ {[%clk 0:01:21.5]} 0-1

[Event "*** Titled Tuesday 3|2 Blitz"]
[Site "Chess.com"]
[Date "2016.06.07"]
[Round "3"]
[White "Blitzstream"]
[Black "OldweakGM"]
[Result "0-1"]
[WhiteElo "2509"]
[BlackElo "2613"]
[TimeControl "180+2"]
[EndTime "11:35:49 PDT"]
[Termination "OldweakGM won by checkmate"]

1. d4 {[%clk 0:03:01.9]} 1... Nf6 {[%clk 0:03:00.7]} 2. Bg5 {[%clk 0:03:02.4]}
2... d5 {[%clk 0:02:56.1]} 3. Bxf6 {[%clk 0:03:02.2]} 3... exf6 {[%clk
0:02:57.3]} 4. e3 {[%clk 0:03:03.8]} 4... Bd6 {[%clk 0:02:58.1]} 5. Nf3 {[%clk
0:03:02]} 5... O-O {[%clk 0:02:58.5]} 6. c4 {[%clk 0:03:03.2]} 6... dxc4 {[%clk
0:02:59]} 7. Bxc4 {[%clk 0:03:03.8]} 7... f5 {[%clk 0:02:59.4]} 8. O-O {[%clk
0:03:04.2]} 8... Nd7 {[%clk 0:03:00.2]} 9. Nc3 {[%clk 0:03:05.2]} 9... Nf6
{[%clk 0:02:58.9]} 10. Rc1 {[%clk 0:03:03.3]} 10... c6 {[%clk 0:03:00]} 11. d5
{[%clk 0:02:49.2]} 11... c5 {[%clk 0:02:57.7]} 12. Qc2 {[%clk 0:02:12.4]} 12...
a6 {[%clk 0:02:56.4]} 13. a4 {[%clk 0:02:11.5]} 13... Re8 {[%clk 0:02:54.9]} 14.
Rfd1 {[%clk 0:02:12.1]} 14... Bd7 {[%clk 0:02:53.5]} 15. Bf1 {[%clk 0:02:11.5]}
15... f4 {[%clk 0:02:47.5]} 16. e4 {[%clk 0:02:08.9]} 16... Bg4 {[%clk
0:02:46.7]} 17. Be2 {[%clk 0:01:57]} 17... Bxf3 {[%clk 0:02:47.3]} 18. Bxf3
{[%clk 0:01:58.1]} 18... Nd7 {[%clk 0:02:48.9]} 19. Nb1 {[%clk 0:01:47.6]} 19...
Ne5 {[%clk 0:02:48.2]} 20. Nd2 {[%clk 0:01:49.2]} 20... b5 {[%clk 0:02:49.3]}
21. Be2 {[%clk 0:01:46.8]} 21... Qb6 {[%clk 0:02:40.4]} 22. Nf3 {[%clk
0:01:11.8]} 22... c4 {[%clk 0:02:39.3]} 23. Qd2 {[%clk 0:00:56.4]} 23... Ng4
{[%clk 0:02:38.1]} 24. Nd4 {[%clk 0:00:52.5]} 24... Ne5 {[%clk 0:02:02.4]} 25.
a5 {[%clk 0:00:52.6]} 25... Qa7 {[%clk 0:02:01.7]} 26. b3 {[%clk 0:00:42.7]}
26... cxb3 {[%clk 0:01:57.3]} 27. Nf5 {[%clk 0:00:29.6]} 27... Ba3 {[%clk
0:01:38.2]} 28. Rb1 {[%clk 0:00:24]} 28... f3 {[%clk 0:01:36.4]} 29. Bxf3 {[%clk
0:00:21.7]} 29... g6 {[%clk 0:01:35.8]} 30. Qh6 {[%clk 0:00:17.8]} 30... gxf5
{[%clk 0:01:17.1]} 31. Qg5+ {[%clk 0:00:18.6]} 31... Ng6 {[%clk 0:01:13.8]} 32.
exf5 {[%clk 0:00:19.9]} 32... Qe7 {[%clk 0:01:13.2]} 33. Qg4 {[%clk 0:00:16]}
33... Rac8 {[%clk 0:01:05.1]} 34. fxg6 {[%clk 0:00:15]} 34... hxg6 {[%clk
0:01:06.4]} 35. h4 {[%clk 0:00:15.2]} 35... Rc4 {[%clk 0:01:06.9]} 36. d6 {[%clk
0:00:06.2]} 36... Bxd6 {[%clk 0:01:05.4]} 37. Rd4 {[%clk 0:00:07.1]} 37... Qe1+
{[%clk 0:01:03.7]} 38. Rxe1 {[%clk 0:00:06.9]} 38... Rxe1# {[%clk 0:01:03.2]}
0-1

[Event "*** Titled Tuesday 3|2 Blitz"]
[Site "Chess.com"]
[Date "2016.06.07"]
[Round "3"]
[White "bugsbunny444"]
[Black "GMKrikor"]
[Result "1/2-1/2"]
[WhiteElo "2366"]
[BlackElo "2547"]
[TimeControl "180+2"]
[EndTime "11:35:54 PDT"]
[Termination "Game drawn by agreement"]

1. Nf3 {[%clk 0:03:01.9]} 1... c5 {[%clk 0:03:00.9]} 2. c4 {[%clk 0:03:01.2]}
2... Nc6 {[%clk 0:03:02.4]} 3. d4 {[%clk 0:03:02.1]} 3... cxd4 {[%clk
0:03:03.4]} 4. Nxd4 {[%clk 0:03:04]} 4... Nf6 {[%clk 0:03:05.3]} 5. g3 {[%clk
0:03:04.1]} 5... e5 {[%clk 0:03:06.4]} 6. Nb5 {[%clk 0:03:04.8]} 6... d6 {[%clk
0:03:07.6]} 7. N1c3 {[%clk 0:02:57.3]} 7... Be6 {[%clk 0:03:03.1]} 8. Nd5 {[%clk
0:02:46.2]} 8... Rc8 {[%clk 0:02:47.8]} 9. Bg2 {[%clk 0:02:34.1]} 9... Bxd5
{[%clk 0:02:35.7]} 10. cxd5 {[%clk 0:02:28.3]} 10... Qa5+ {[%clk 0:02:36.7]} 11.
Nc3 {[%clk 0:02:23.2]} 11... Nd4 {[%clk 0:02:38.2]} 12. O-O {[%clk 0:02:20.3]}
12... Be7 {[%clk 0:02:39.6]} 13. e3 {[%clk 0:02:10.3]} 13... Nb5 {[%clk
0:02:40.3]} 14. Bd2 {[%clk 0:02:01.2]} 14... O-O {[%clk 0:02:35.9]} 15. Qb3
{[%clk 0:01:44.7]} 15... Nxc3 {[%clk 0:02:35.1]} 16. Bxc3 {[%clk 0:01:43.4]}
16... Qa6 {[%clk 0:02:35.2]} 17. Rfc1 {[%clk 0:01:36.9]} 17... Nd7 {[%clk
0:02:36.4]} 18. Bf1 {[%clk 0:01:26.6]} 18... Qb6 {[%clk 0:02:37.8]} 19. Qb5
{[%clk 0:00:57.2]} 19... Qxb5 {[%clk 0:02:34.5]} 20. Bxb5 {[%clk 0:00:57.9]}
20... Nb6 {[%clk 0:02:36.4]} 21. e4 {[%clk 0:00:46.8]} 21... f5 {[%clk
0:02:37.2]} 22. exf5 {[%clk 0:00:21.5]} 22... Nxd5 {[%clk 0:02:31.5]} 23. Bd2
{[%clk 0:00:22.5]} 23... Nf6 {[%clk 0:02:09.3]} 24. Bg5 {[%clk 0:00:18.7]} 24...
d5 {[%clk 0:02:02]} 25. Bxf6 {[%clk 0:00:16.9]} 25... Bxf6 {[%clk 0:01:53.7]}
26. Bd7 {[%clk 0:00:16.9]} 26... Rxc1+ {[%clk 0:01:54.4]} 27. Rxc1 {[%clk
0:00:17.4]} 27... Rd8 {[%clk 0:01:56.3]} 28. Rc8 {[%clk 0:00:12.7]} 28... Kf8
{[%clk 0:01:57.3]} 29. Rxd8+ {[%clk 0:00:11]} 29... Bxd8 {[%clk 0:01:59.2]} 30.
Be6 {[%clk 0:00:12.5]} 30... d4 {[%clk 0:02:00.8]} 31. Kf1 {[%clk 0:00:08]}
31... Ke7 {[%clk 0:02:02.3]} 32. Ke2 {[%clk 0:00:09.1]} 32... Kd6 {[%clk
0:02:03.8]} 33. Kd3 {[%clk 0:00:09.3]} 33... Kc5 {[%clk 0:02:05.5]} 34. a4
{[%clk 0:00:09.1]} 34... Kb4 {[%clk 0:02:05.7]} 35. b3 {[%clk 0:00:09.9]} 35...
Bg5 {[%clk 0:02:05.8]} 36. f3 {[%clk 0:00:10]} 36... b6 {[%clk 0:02:06.2]} 37.
Bg8 {[%clk 0:00:10.4]} 37... h6 {[%clk 0:02:07.1]} 38. Bc4 {[%clk 0:00:10.5]}
38... a6 {[%clk 0:02:07.5]} 39. Bxa6 {[%clk 0:00:10.1]} 39... Kxb3 {[%clk
0:02:09.2]} 40. Bb5 {[%clk 0:00:11.3]} 40... Kb4 {[%clk 0:02:10.5]} 41. Bd7
{[%clk 0:00:11.7]} 41... Kb3 {[%clk 0:02:10.1]} 42. Bb5 {[%clk 0:00:12]} 42...
Kb2 {[%clk 0:02:11.5]} 43. h4 {[%clk 0:00:09.5]} 43... Bf6 {[%clk 0:02:12]} 44.
h5 {[%clk 0:00:10.5]} 44... Kc1 {[%clk 0:02:12.9]} 45. g4 {[%clk 0:00:11.1]}
45... Kd1 {[%clk 0:02:14.3]} 46. Bc6 {[%clk 0:00:11.8]} 46... Ke1 {[%clk
0:02:15.9]} 47. Be4 {[%clk 0:00:10.9]} 47... Kf2 {[%clk 0:02:17.5]} 48. Bd5
{[%clk 0:00:11.3]} 48... Be7 {[%clk 0:02:18.9]} 49. Be4 {[%clk 0:00:12.1]} 49...
Bb4 {[%clk 0:02:20.1]} 50. Bd5 {[%clk 0:00:13.3]} 50... Kg3 {[%clk 0:02:21.5]}
51. Be4 {[%clk 0:00:14.4]} 51... Kf4 {[%clk 0:02:23.2]} 52. Bd5 {[%clk
0:00:15.4]} 52... Kg5 {[%clk 0:02:24.8]} 53. Be4 {[%clk 0:00:16.6]} 53... Kf6
{[%clk 0:02:26.7]} 54. Bc6 {[%clk 0:00:17.6]} 54... Ke7 {[%clk 0:02:28.2]} 55.
Bd5 {[%clk 0:00:18.8]} 55... Kd6 {[%clk 0:02:29.9]} 56. Be4 {[%clk 0:00:20.1]}
56... Bc3 {[%clk 0:02:31.5]} 57. Bb7 {[%clk 0:00:20.9]} 57... Kc5 {[%clk
0:02:32.9]} 58. Be4 {[%clk 0:00:20.9]} 58... Bb2 {[%clk 0:02:34.5]} 59. Bb7
{[%clk 0:00:19.8]} 59... Kb4 {[%clk 0:02:36.1]} 60. Bc6 {[%clk 0:00:20.9]} 60...
Bc1 {[%clk 0:02:37.6]} 61. Bb5 {[%clk 0:00:21.4]} 61... Bg5 {[%clk 0:02:37.9]}
62. Bd7 {[%clk 0:00:21.3]} 62... Kb3 {[%clk 0:02:39.1]} 63. Bb5 {[%clk 0:00:22]}
63... Kb2 {[%clk 0:02:40.2]} 64. Bc6 {[%clk 0:00:23.3]} 64... Kc1 {[%clk
0:02:41.1]} 65. Bb5 {[%clk 0:00:24.4]} 1/2-1/2

[Event "*** Titled Tuesday 3|2 Blitz"]
[Site "Chess.com"]
[Date "2016.06.07"]
[Round "3"]
[White "Imre91"]
[Black "Er_is_geen_hoop_meer"]
[Result "1-0"]
[WhiteElo "2563"]
[BlackElo "2329"]
[TimeControl "180+2"]
[EndTime "11:36:01 PDT"]
[Termination "Imre91 won by checkmate"]

1. d4 {[%clk 0:03:01.9]} 1... Nf6 {[%clk 0:02:46.3]} 2. Nf3 {[%clk 0:03:00.5]}
2... e6 {[%clk 0:02:44.4]} 3. Bg5 {[%clk 0:02:59.7]} 3... h6 {[%clk 0:02:43.3]}
4. Bh4 {[%clk 0:02:59.9]} 4... d5 {[%clk 0:02:44.3]} 5. c4 {[%clk 0:02:59]} 5...
c6 {[%clk 0:02:42.1]} 6. e3 {[%clk 0:02:59.1]} 6... Nbd7 {[%clk 0:02:41.5]} 7.
Nc3 {[%clk 0:02:58.2]} 7... Bd6 {[%clk 0:02:42.3]} 8. Bd3 {[%clk 0:02:57.2]}
8... O-O {[%clk 0:02:42.8]} 9. O-O {[%clk 0:02:56.2]} 9... dxc4 {[%clk
0:02:41.4]} 10. Bxc4 {[%clk 0:02:56.6]} 10... e5 {[%clk 0:02:43]} 11. d5 {[%clk
0:02:51.8]} 11... Nb6 {[%clk 0:02:35.7]} 12. Bb3 {[%clk 0:02:52.2]} 12... c5
{[%clk 0:02:34]} 13. Nd2 {[%clk 0:02:47.4]} 13... Be7 {[%clk 0:02:29.8]} 14.
Bxf6 {[%clk 0:02:46.1]} 14... Bxf6 {[%clk 0:02:30.3]} 15. Rc1 {[%clk 0:02:44]}
15... Bf5 {[%clk 0:02:26.6]} 16. e4 {[%clk 0:02:43.9]} 16... Bd7 {[%clk
0:02:21.4]} 17. Na4 {[%clk 0:02:42.2]} 17... Bxa4 {[%clk 0:02:20.1]} 18. Bxa4
{[%clk 0:02:42.5]} 18... Rc8 {[%clk 0:02:20.8]} 19. Nf3 {[%clk 0:02:39.1]} 19...
Rc7 {[%clk 0:02:16.3]} 20. Bb5 {[%clk 0:02:35.4]} 20... a6 {[%clk 0:02:15]} 21.
Be2 {[%clk 0:02:36]} 21... Nc8 {[%clk 0:02:12.7]} 22. Qc2 {[%clk 0:02:27.7]}
22... Nd6 {[%clk 0:02:13.4]} 23. a4 {[%clk 0:02:26.5]} 23... c4 {[%clk
0:02:13.2]} 24. b3 {[%clk 0:02:20.6]} 24... c3 {[%clk 0:02:11.6]} 25. a5 {[%clk
0:02:19.5]} 25... Bg5 {[%clk 0:02:06.6]} 26. Rb1 {[%clk 0:02:18.2]} 26... f5
{[%clk 0:02:01.9]} 27. exf5 {[%clk 0:02:17.8]} 27... Qf6 {[%clk 0:01:58.6]} 28.
Bc4 {[%clk 0:02:14.2]} 28... e4 {[%clk 0:01:56.1]} 29. Ne1 {[%clk 0:02:12.5]}
29... Bd2 {[%clk 0:01:51.8]} 30. g3 {[%clk 0:02:01.8]} 30... Rxc4 {[%clk
0:01:52.1]} 31. bxc4 {[%clk 0:02:01.7]} 31... Nxf5 {[%clk 0:01:54]} 32. Qxe4
{[%clk 0:01:59.3]} 32... Nd4 {[%clk 0:01:53.9]} 33. Nc2 {[%clk 0:01:56.4]} 33...
Nf3+ {[%clk 0:01:52.9]} 34. Kg2 {[%clk 0:01:56.3]} 34... Ng5 {[%clk 0:01:54.5]}
35. Qd3 {[%clk 0:01:53.3]} 35... h5 {[%clk 0:01:48.8]} 36. f4 {[%clk 0:01:52.9]}
36... Nf7 {[%clk 0:01:48.7]} 37. Rxb7 {[%clk 0:01:53.3]} 37... h4 {[%clk
0:01:49.5]} 38. Rb6 {[%clk 0:01:52.9]} 38... Qe7 {[%clk 0:01:45.9]} 39. Re6
{[%clk 0:01:53.6]} 39... Qc5 {[%clk 0:01:45.9]} 40. f5 {[%clk 0:01:53]} 40...
Ng5 {[%clk 0:01:45.4]} 41. gxh4 {[%clk 0:01:47.2]} 41... Nxe6 {[%clk 0:01:45.5]}
42. fxe6 {[%clk 0:01:49.1]} 42... Rxf1 {[%clk 0:01:43.1]} 43. Kxf1 {[%clk
0:01:51]} 43... Qd6 {[%clk 0:01:39]} 44. Qf3 {[%clk 0:01:44.2]} 44... Qc5 {[%clk
0:01:29.3]} 45. Qe4 {[%clk 0:01:44.2]} 45... Kf8 {[%clk 0:01:15.7]} 46. Qf5+
{[%clk 0:01:43.3]} 46... Kg8 {[%clk 0:01:16.1]} 47. Qe4 {[%clk 0:01:31.9]} 47...
Kf8 {[%clk 0:01:16.9]} 48. Ke2 {[%clk 0:01:33.4]} 48... Ke7 {[%clk 0:01:16.8]}
49. Qd4 {[%clk 0:01:27.6]} 49... Qc8 {[%clk 0:01:03.7]} 50. Qxg7+ {[%clk
0:01:26.5]} 50... Kd6 {[%clk 0:01:05.6]} 51. Kd3 {[%clk 0:01:20.5]} 51... Kc5
{[%clk 0:00:54.4]} 52. Qe7# {[%clk 0:01:18.5]} 1-0

[Event "*** Titled Tuesday 3|2 Blitz"]
[Site "Chess.com"]
[Date "2016.06.07"]
[Round "3"]
[White "petrpalachev"]
[Black "bilelou"]
[Result "0-1"]
[WhiteElo "2383"]
[BlackElo "2168"]
[TimeControl "180+2"]
[EndTime "11:36:06 PDT"]
[Termination "bilelou won by resignation"]

1. d4 {[%clk 0:03:01.9]} 1... e6 {[%clk 0:02:41.6]} 2. c4 {[%clk 0:03:01.5]}
2... d5 {[%clk 0:02:38.3]} 3. Nc3 {[%clk 0:02:59.9]} 3... Be7 {[%clk 0:02:38.3]}
4. Bf4 {[%clk 0:03:00.3]} 4... Nf6 {[%clk 0:02:35.6]} 5. Nf3 {[%clk 0:03:00.9]}
5... O-O {[%clk 0:02:31.3]} 6. e3 {[%clk 0:03:01.9]} 6... Nbd7 {[%clk
0:02:24.2]} 7. Be2 {[%clk 0:03:02.1]} 7... dxc4 {[%clk 0:02:22.4]} 8. Bxc4
{[%clk 0:03:04]} 8... c5 {[%clk 0:02:23.3]} 9. dxc5 {[%clk 0:02:58]} 9... Bxc5
{[%clk 0:02:23.7]} 10. O-O {[%clk 0:02:56.9]} 10... a6 {[%clk 0:02:25.2]} 11. a4
{[%clk 0:02:55.6]} 11... b6 {[%clk 0:02:24]} 12. Bd3 {[%clk 0:02:53.8]} 12...
Bb7 {[%clk 0:02:24.4]} 13. e4 {[%clk 0:02:55.1]} 13... h6 {[%clk 0:02:23.1]} 14.
Qe2 {[%clk 0:02:55.6]} 14... Nh5 {[%clk 0:02:14]} 15. Bd2 {[%clk 0:02:55.1]}
15... Qf6 {[%clk 0:02:10.7]} 16. g3 {[%clk 0:02:33.4]} 16... Qe7 {[%clk
0:02:02.2]} 17. Rfe1 {[%clk 0:02:28]} 17... Nhf6 {[%clk 0:02:00]} 18. e5 {[%clk
0:02:19.4]} 18... Ng4 {[%clk 0:02:01]} 19. Ne4 {[%clk 0:02:09]} 19... Ngxe5
{[%clk 0:01:57.3]} 20. Nxe5 {[%clk 0:02:09.4]} 20... Nxe5 {[%clk 0:01:57.3]} 21.
Nxc5 {[%clk 0:02:10.9]} 21... Nf3+ {[%clk 0:01:58.2]} 22. Kf1 {[%clk 0:01:19.1]}
22... Nxh2+ {[%clk 0:01:58.5]} 23. Kg1 {[%clk 0:01:20.1]} 23... Nf3+ {[%clk
0:01:59.3]} 24. Kf1 {[%clk 0:01:22]} 24... bxc5 {[%clk 0:01:53.9]} 25. Bc3
{[%clk 0:01:19.9]} 25... Nh2+ {[%clk 0:01:48.7]} 26. Kg1 {[%clk 0:01:20]} 26...
Nf3+ {[%clk 0:01:50.3]} 27. Kf1 {[%clk 0:01:21.6]} 27... Nxe1 {[%clk 0:01:51.5]}
28. Rxe1 {[%clk 0:01:17.4]} 28... Bd5 {[%clk 0:01:52.6]} 29. Qe5 {[%clk
0:01:15.8]} 29... Qg5 {[%clk 0:01:38.2]} 30. Qc7 {[%clk 0:01:08.8]} 30... Qh5
{[%clk 0:01:37.3]} 31. Re3 {[%clk 0:01:08.2]} 31... Rac8 {[%clk 0:01:33.7]} 32.
Qf4 {[%clk 0:01:07.9]} 32... c4 {[%clk 0:01:32.9]} 33. Bc2 {[%clk 0:01:04]}
33... Rfd8 {[%clk 0:01:13.3]} 34. Re5 {[%clk 0:00:54.2]} 34... Qh1+ {[%clk
0:01:10.4]} 35. Ke2 {[%clk 0:00:55]} 35... f6 {[%clk 0:01:08.3]} 36. Re3 {[%clk
0:00:52.4]} 36... Bg2 {[%clk 0:01:08.2]} 37. Bd4 {[%clk 0:00:15.3]} 37... e5
{[%clk 0:01:01.7]} 38. Rxe5 {[%clk 0:00:11.6]} 38... fxe5 {[%clk 0:01:01.5]} 39.
Qf5 {[%clk 0:00:06.2]} 39... Qf1+ {[%clk 0:01:01.2]} 40. Kd2 {[%clk 0:00:06.9]}
40... Rxd4+ {[%clk 0:01:01.9]} 0-1

[Event "*** Titled Tuesday 3|2 Blitz"]
[Site "Chess.com"]
[Date "2016.06.07"]
[Round "3"]
[White "theprosecution1"]
[Black "MattyDPerrine"]
[Result "1-0"]
[WhiteElo "2462"]
[BlackElo "2253"]
[TimeControl "180+2"]
[EndTime "11:36:07 PDT"]
[Termination "theprosecution1 won by resignation"]

1. e4 {[%clk 0:03:01.9]} 1... c5 {[%clk 0:02:57.6]} 2. Nf3 {[%clk 0:03:02.9]}
2... e6 {[%clk 0:02:57.8]} 3. d4 {[%clk 0:03:04]} 3... cxd4 {[%clk 0:02:59.7]}
4. Nxd4 {[%clk 0:03:05.6]} 4... a6 {[%clk 0:03:01.3]} 5. c4 {[%clk 0:03:07]}
5... Qc7 {[%clk 0:03:02.5]} 6. Nc3 {[%clk 0:03:08.6]} 6... Nf6 {[%clk 0:03:04]}
7. a3 {[%clk 0:03:10.1]} 7... b6 {[%clk 0:03:03.2]} 8. Be3 {[%clk 0:03:11.6]}
8... Bb7 {[%clk 0:03:04.6]} 9. f3 {[%clk 0:03:13.2]} 9... d6 {[%clk 0:03:05.8]}
10. Rc1 {[%clk 0:03:14.4]} 10... Be7 {[%clk 0:03:07]} 11. Be2 {[%clk 0:03:15.9]}
11... O-O {[%clk 0:03:08.2]} 12. O-O {[%clk 0:03:17.4]} 12... Nbd7 {[%clk
0:03:09.8]} 13. b4 {[%clk 0:03:18.7]} 13... Rac8 {[%clk 0:03:10.6]} 14. Kh1
{[%clk 0:03:19]} 14... Qb8 {[%clk 0:03:11.4]} 15. Qd2 {[%clk 0:03:18]} 15... Bd8
{[%clk 0:03:10.6]} 16. Rc2 {[%clk 0:03:11.1]} 16... Bc7 {[%clk 0:03:11.7]} 17.
Bg1 {[%clk 0:03:12.8]} 17... Kh8 {[%clk 0:03:12.7]} 18. Rb1 {[%clk 0:03:13.7]}
18... Rg8 {[%clk 0:03:05.1]} 19. Na4 {[%clk 0:03:14.8]} 19... Ba8 {[%clk
0:02:49.2]} 20. Qc1 {[%clk 0:03:13.5]} 20... g5 {[%clk 0:02:38.2]} 21. Nb2
{[%clk 0:02:55.8]} 21... g4 {[%clk 0:02:28.6]} 22. Nd3 {[%clk 0:02:56.5]} 22...
Rg6 {[%clk 0:01:59.8]} 23. c5 {[%clk 0:02:42.3]} 23... Rcg8 {[%clk 0:01:31.3]}
24. c6 {[%clk 0:02:25.4]} 24... gxf3 {[%clk 0:01:29.8]} 25. Bxf3 {[%clk
0:02:19.4]} 25... Nf8 {[%clk 0:01:20.1]} 26. b5 {[%clk 0:02:07.4]} 26... a5
{[%clk 0:01:18]} 27. Qf1 {[%clk 0:01:44.6]} 27... d5 {[%clk 0:01:16.7]} 28. e5
{[%clk 0:01:45.8]} 28... Ne8 {[%clk 0:01:07.9]} 29. Re1 {[%clk 0:01:44.5]} 29...
Bd8 {[%clk 0:01:01.7]} 30. g3 {[%clk 0:01:38.7]} 30... Qa7 {[%clk 0:01:01.8]}
31. Bg2 {[%clk 0:01:39.4]} 31... Qe7 {[%clk 0:01:01.8]} 32. Rf2 {[%clk
0:01:40.5]} 32... R6g7 {[%clk 0:01:01.6]} 33. Nf4 {[%clk 0:01:41.8]} 33... h6
{[%clk 0:00:56.7]} 34. Nh5 {[%clk 0:01:42.3]} 34... Rh7 {[%clk 0:00:58.3]} 35.
a4 {[%clk 0:01:42.1]} 35... Qg5 {[%clk 0:00:51.7]} 36. Nf4 {[%clk 0:01:35.6]}
36... Bc7 {[%clk 0:00:50.1]} 37. Qe2 {[%clk 0:01:30]} 37... h5 {[%clk
0:00:47.8]} 38. Nf3 {[%clk 0:01:24.5]} 38... Qh6 {[%clk 0:00:43]} 39. Rff1
{[%clk 0:01:19.1]} 39... Bd8 {[%clk 0:00:44.1]} 40. Be3 {[%clk 0:01:18.8]} 40...
Qg7 {[%clk 0:00:36.1]} 41. Qf2 {[%clk 0:01:13.9]} 41... h4 {[%clk 0:00:35.4]}
42. Nxh4 {[%clk 0:01:13.7]} 42... Bxh4 {[%clk 0:00:22.7]} 43. gxh4 {[%clk
0:01:14.6]} 43... Qg4 {[%clk 0:00:22.4]} 44. h5 {[%clk 0:01:05.1]} 44... Ng7
{[%clk 0:00:16.7]} 45. Bh3 {[%clk 0:01:05.3]} 45... Qg5 {[%clk 0:00:15.3]} 46.
Ng6+ {[%clk 0:01:06.6]} 1-0